fUSD/lending_fUSD_20250426
["ID","MTS","AMOUNT","RATE_DAILY","PERIOD"]
[359037219,1745665841672,-157.32467713,0.00019791,2]
[359037220,1745665841683,-500.0,0.00019791,2]
[359037221,1745665841694,-500.0,0.00019791,2]
[359037222,1745665841704,-500.0,0.00019791,2]
[359037223,1745665841714,-500.0,0.00019791,2]
[359037224,1745665841724,-500.0,0.00019791,2]
[359037225,1745665841735,-500.0,0.00019791,2]
[359037226,1745665841745,-500.0,0.00019791,2]
[359037227,1745665841756,-153.5629155,0.00019791,2]
[359037228,1745665841766,-789.98,0.00019791,2]
[359037229,1745665841776,-500.0,0.00019791,2]
[359037230,1745665841787,-500.0,0.00019791,2]
[359037231,1745665841802,-722.92,0.00019791,2]
[359037232,1745665841813,-500.0,0.00019791,2]
[359037233,1745665841823,-711.56,0.00019791,2]
[359037234,1745665841833,-500.0,0.00019791,2]
[359037235,1745665841843,-500.0,0.00019791,2]
[359037236,1745665841854,-500.0,0.00019791,2]
[359037237,1745665841864,-500.0,0.00019791,2]
[359037238,1745665841875,-500.0,0.00019791,2]
[359037239,1745665841885,-500.0,0.00019791,2]
[359037240,1745665841895,-500.0,0.00019791,2]
[359037241,1745665841905,-500.0,0.00019791,2]
[359037242,1745665841915,-500.0,0.00019791,2]
[359037243,1745665841925,-308.21385033,0.00019791,2]
[359037244,1745665841935,-500.0,0.00019791,2]
[359037245,1745665841946,-500.0,0.00019791,2]
[359037246,1745665841956,-416.44714749,0.00019791,2]
[359037247,1745665841966,-500.0,0.00019791,2]
[359037248,1745665841976,-500.0,0.00019791,2]
[359037249,1745665841986,-970.5,0.00019791,2]
[359037250,1745665841996,-500.0,0.00019791,2]
[359037251,1745665842007,-500.0,0.00019791,2]
[359037252,1745665842017,-537.39545282,0.00019791,2]
[359037253,1745665842027,-500.0,0.00019791,2]
[359037254,1745665842038,-612.01681032,0.00019791,2]
[359037255,1745665842048,-500.0,0.00019791,2]
[359037256,1745665842058,-886.07,0.00019791,2]
[359037257,1745665842068,-733.69,0.00019791,2]
[359037258,1745665842078,-500.0,0.00019791,2]
[359037259,1745665842088,-500.0,0.00019791,2]
[359037260,1745665842099,-500.0,0.00019791,2]
[359037261,1745665842109,-650.29,0.00019791,2]
[359037262,1745665842119,-500.0,0.00019791,2]
[359037263,1745665842129,-1045.54,0.00019791,2]
[359037264,1745665842139,-500.0,0.00019791,2]
[359037265,1745665842150,-500.0,0.00019791,2]
[359037266,1745665842160,-500.0,0.00019791,2]
[359037267,1745665842171,-813.36,0.00019791,2]
[359037268,1745665842181,-686.99,0.00019791,2]
[359037269,1745665842193,-844.79,0.00019791,2]
[359037270,1745665842206,-500.0,0.00019791,2]
[359037271,1745665842216,-500.0,0.00019791,2]
[359037272,1745665842226,-661.19,0.00019791,2]
[359037273,1745665842237,-500.0,0.00019791,2]
[359037274,1745665842252,-682.7,0.00019791,2]
[359037275,1745665842262,-697.71,0.00019791,2]
[359037276,1745665842273,-500.0,0.00019791,2]
[359037277,1745665842283,-500.0,0.00019791,2]
[359037278,1745665842294,-500.0,0.00019791,2]
[359037279,1745665842304,-500.0,0.00019791,2]
[359037280,1745665842314,-500.0,0.00019791,2]
[359037281,1745665842324,-500.0,0.00019791,2]
[359037282,1745665842334,-500.0,0.00019791,2]
[359037283,1745665842344,-500.0,0.00019791,2]
[359037284,1745665842354,-500.0,0.00019791,2]
[359037285,1745665842364,-500.0,0.00019791,2]
[359037286,1745665842375,-500.0,0.00019791,2]
[359037287,1745665842385,-616.89076597,0.00019791,2]
[359037288,1745665842396,-500.0,0.00019791,2]
[359037289,1745665842406,-500.0,0.00019791,2]
[359037290,1745665842416,-757.82,0.00019791,2]
[359037291,1745665842426,-500.0,0.00019791,2]
[359037292,1745665842438,-1180.49,0.00019791,2]
[359037293,1745665842448,-500.0,0.00019791,2]
[359037294,1745665842458,-500.0,0.00019791,2]
[359037295,1745665842468,-524.39,0.00019791,2]
[359037296,1745665842478,-173.92571822,0.00019791,2]
[359037297,1745665842488,-500.0,0.00019791,2]
[359037298,1745665842498,-564.85362062,0.00019791,2]
[359037299,1745665842508,-500.0,0.00019791,2]
[359037300,1745665842518,-500.0,0.00019791,2]
[359037301,1745665842528,-652.84,0.00019791,2]
[359037302,1745665842539,-641.53,0.00019791,2]
[359037303,1745665842548,-500.0,0.00019791,2]
[359037304,1745665842558,-500.0,0.00019791,2]
[359037305,1745665842568,-743.26,0.00019791,2]
[359037306,1745665842578,-500.0,0.00019791,2]
[359037307,1745665842588,-500.0,0.00019791,2]
[359037308,1745665842599,-918.32,0.00019791,2]
[359037309,1745665842608,-527.01,0.00019791,2]
[359037310,1745665842619,-729.59,0.00019791,2]
[359037311,1745665842628,-500.0,0.00019791,2]
[359037312,1745665842638,-500.0,0.00019791,2]
[359037313,1745665842648,-349.45121917,0.00019791,2]
[359037314,1745665842659,-779.22,0.00019791,2]
[359037315,1745665842669,-500.0,0.00019791,2]
[359037316,1745665842679,-150.0,0.00019791,2]
[359037317,1745665842700,-503.35852567,0.00019791,2]
[359037318,1745665842715,-568.51,0.00019791,2]
[359037319,1745665842726,-353.7093691,0.00019791,2]
[359037320,1745665842735,-786.46,0.00019791,2]
[359037321,1745665842747,-150.0,0.00019791,2]
[359037322,1745665842758,-500.0,0.00019791,2]
[359037323,1745665842769,-730.61,0.00019791,2]
[359037324,1745665842779,-150.0,0.00019791,2]
[359037325,1745665842790,-500.0,0.00019791,2]
[359037326,1745665842801,-500.0,0.00019791,2]
[359037327,1745665842812,-500.0,0.00019791,2]
[359037328,1745665842822,-150.0,0.00019791,2]
[359037329,1745665842832,-150.0,0.00019791,2]
[359037330,1745665842843,-747.29,0.00019791,2]
[359037331,1745665842853,-150.0,0.00019791,2]
[359037332,1745665842863,-811.37,0.00019791,2]
[359037335,1745665842874,-500.0,0.00019791,2]
[359037337,1745665842886,-150.0,0.00019791,2]
[359037339,1745665842898,-500.0,0.00019791,2]
[359037340,1745665842909,-500.0,0.00019791,2]
[359037342,1745665842919,-500.0,0.00019791,2]
[359037344,1745665842930,-566.58,0.00019791,2]
[359037345,1745665842940,-500.0,0.00019791,2]
[359037346,1745665842951,-1154.11,0.00019791,2]
[359037347,1745665842962,-500.0,0.00019791,2]
[359037348,1745665842973,-500.0,0.00019791,2]
[359037349,1745665842984,-500.0,0.00019791,2]
[359037350,1745665842994,-500.0,0.00019791,2]
[359037351,1745665843004,-500.0,0.00019791,2]
[359037352,1745665843015,-500.0,0.00019791,2]
[359037353,1745665843025,-500.0,0.00019791,2]
[359037354,1745665843036,-951.37,0.00019791,2]
[359037355,1745665843046,-500.0,0.00019791,2]
[359037356,1745665843056,-500.0,0.00019791,2]
[359037357,1745665843066,-500.0,0.00019791,2]
[359037358,1745665843076,-500.0,0.00019791,2]
[359037359,1745665843088,-500.0,0.00019791,2]
[359037360,1745665843099,-500.0,0.00019791,2]
[359037361,1745665843109,-1374.36,0.00019791,2]
[359037362,1745665843119,-500.0,0.00019791,2]
[359037363,1745665843130,-500.0,0.00019791,2]
[359037364,1745665843140,-962.37,0.00019791,2]
[359037365,1745665843151,-626.54,0.00019791,2]
[359037367,1745665843161,-500.0,0.00019791,2]
[359037369,1745665843173,-897.93,0.00019791,2]
[359037370,1745665843183,-658.65,0.00019791,2]
[359037371,1745665843195,-876.68,0.00019791,2]
[359037372,1745665843206,-500.0,0.00019791,2]
[359037373,1745665843216,-500.0,0.00019791,2]
[359037374,1745665843226,-500.0,0.00019791,2]
[359037375,1745665843235,-500.0,0.00019791,2]
[359037376,1745665843247,-555.49,0.00019791,2]
[359037377,1745665843257,-516.19667786,0.00019791,2]
[359037378,1745665843267,-500.0,0.00019791,2]
[359037379,1745665843278,-500.0,0.00019791,2]
[359037380,1745665843290,-1000.0,0.00019791,2]
[359037381,1745665843299,-500.0,0.00019791,2]
[359037382,1745665843310,-500.0,0.00019791,2]
[359037383,1745665843319,-500.0,0.00019791,2]
[359037384,1745665843329,-769.66,0.00019791,2]
[359037385,1745665843339,-500.0,0.00019791,2]
[359037386,1745665843349,-500.0,0.00019791,2]
[359037387,1745665843359,-500.0,0.00019791,2]
[359037388,1745665843370,-841.03,0.00019791,2]
[359037389,1745665843380,-500.0,0.00019791,2]
[359037390,1745665843390,-500.0,0.00019791,2]
[359037391,1745665843400,-730.57,0.00019791,2]
[359037392,1745665843410,-500.0,0.00019791,2]
[359037393,1745665843421,-500.0,0.00019791,2]
[359037394,1745665843431,-227.15132585,0.00019791,2]
[359037395,1745665843441,-500.0,0.00019791,2]
[359037396,1745665843451,-500.0,0.00019791,2]
[359037397,1745665843462,-500.0,0.00019791,2]
[359037398,1745665843471,-500.0,0.00019791,2]
[359037399,1745665843482,-1408.63,0.00019791,2]
[359037400,1745665843492,-500.0,0.00019791,2]
[359037401,1745665843502,-500.0,0.00019791,2]
[359037402,1745665843522,-500.0,0.00019791,2]
[359037403,1745665843532,-500.0,0.00019791,2]
[359037404,1745665843542,-500.0,0.00019791,2]
[359037405,1745665843551,-500.0,0.00019791,2]
[359037406,1745665843562,-556.9,0.00019791,2]
[359037407,1745665843572,-500.0,0.00019791,2]
[359037408,1745665843582,-500.0,0.00019791,2]
[359037409,1745665843592,-500.0,0.00019791,2]
[359037410,1745665843602,-729.16,0.00019791,2]
[359037411,1745665843612,-500.0,0.00019791,2]
[359037412,1745665843622,-500.0,0.00019791,2]
[359037413,1745665843632,-500.0,0.00019791,2]
[359037414,1745665843642,-500.0,0.00019791,2]
[359037415,1745665843652,-291.7918682,0.00019791,2]
[359037416,1745665843662,-603.5320357,0.00019791,2]
[359037417,1745665843672,-118921.68,0.00019791,2]
[359037418,1745665843682,-725.98,0.00019791,2]
[359037419,1745665843692,-653.88,0.00019791,2]
[359037420,1745665843704,-500.0,0.00019791,2]
[359037421,1745665843714,-500.0,0.00019791,2]
[359037422,1745665843724,-910.63,0.00019791,2]
[359037423,1745665843735,-500.0,0.00019791,2]
[359037424,1745665843744,-500.0,0.00019791,2]
[359037425,1745665843754,-834.98,0.00019791,2]
[359037426,1745665843764,-500.0,0.00019791,2]
[359037427,1745665843773,-500.0,0.00019791,2]
[359037428,1745665843783,-14654.78,0.00019791,2]
[359037429,1745665843793,-500.0,0.00019791,2]
[359037430,1745665843803,-500.0,0.00019791,2]
[359037431,1745665843812,-504.97,0.00019791,2]
[359037432,1745665843823,-500.0,0.00019791,2]
[359037433,1745665843832,-625.89,0.00019791,2]
[359037434,1745665843843,-500.0,0.00019791,2]
[359037435,1745665843853,-7220.13,0.00019791,2]
[359037436,1745665843863,-703.87,0.00019791,2]
[359037437,1745665843873,-500.0,0.00019791,2]
[359037438,1745665843883,-653.42,0.00019791,2]
[359037439,1745665843892,-500.0,0.00019791,2]
[359037440,1745665843902,-500.0,0.00019791,2]
[359037441,1745665843912,-653.97,0.00019791,2]
[359037442,1745665843922,-2776.61,0.00019791,2]
[359037443,1745665843932,-500.0,0.00019791,2]
[359037444,1745665843943,-987.98,0.00019791,2]
[359037445,1745665843954,-938.83,0.00019791,2]
[359037446,1745665843964,-680.98,0.00019791,2]
[359037447,1745665843976,-500.0,0.00019791,2]
[359037448,1745665843986,-500.0,0.00019791,2]
[359037449,1745665843996,-500.0,0.00019791,2]
[359037450,1745665844007,-500.0,0.00019791,2]
[359037451,1745665844017,-500.0,0.00019791,2]
[359037452,1745665844027,-500.0,0.00019791,2]
[359037453,1745665844038,-711.92,0.00019791,2]
[359037454,1745665844048,-500.0,0.00019791,2]
[359037455,1745665844058,-500.0,0.00019791,2]
[359037456,1745665844069,-6186.27,0.00019791,2]
[359037457,1745665844079,-500.0,0.00019791,2]
[359037458,1745665844090,-500.0,0.00019791,2]
[359037459,1745665844099,-500.0,0.00019791,2]
[359037460,1745665844109,-500.0,0.00019791,2]
[359037461,1745665844119,-500.0,0.00019791,2]
[359037462,1745665844130,-500.0,0.00019791,2]
[359037463,1745665844140,-500.0,0.00019791,2]
[359037464,1745665844150,-1060.89,0.00019791,2]
[359037465,1745665844160,-500.0,0.00019791,2]
[359037466,1745665844170,-161.90949172,0.00019791,2]
[359037467,1745665844180,-500.0,0.00019791,2]
[359037468,1745665844190,-768.06,0.00019791,2]
[359037469,1745665844208,-500.0,0.00019791,2]
[359037470,1745665844218,-500.0,0.00019791,2]
[359037471,1745665844228,-841.3,0.00019791,2]
[359037472,1745665844239,-836.14,0.00019791,2]
[359037473,1745665844250,-780.28,0.00019791,2]
[359037474,1745665844260,-644.29,0.00019791,2]
[359037475,1745665844270,-500.0,0.00019791,2]
[359037476,1745665844280,-500.0,0.00019791,2]
[359037477,1745665844291,-500.0,0.00019791,2]
[359037478,1745665844301,-500.0,0.00019791,2]
[359037479,1745665844312,-500.0,0.00019791,2]
[359037480,1745665844321,-500.0,0.00019791,2]
[359037481,1745665844332,-150.0,0.00019791,2]
[359037482,1745665844341,-732.43,0.00019791,2]
[359037483,1745665844352,-659.68,0.00019791,2]
[359037484,1745665844362,-500.0,0.00019791,2]
[359037485,1745665844372,-235.18471082,0.00019791,2]
[359037486,1745665844383,-500.0,0.00019791,2]
[359037487,1745665844392,-500.0,0.00019791,2]
[359037488,1745665844402,-150.0,0.00019791,2]
[359037489,1745665844413,-500.0,0.00019791,2]
[359037490,1745665844423,-500.0,0.00019791,2]
[359037491,1745665844433,-500.0,0.00019791,2]
[359037492,1745665844444,-500.0,0.00019791,2]
[359037493,1745665844456,-558.5,0.00019791,2]
[359037494,1745665844466,-500.0,0.00019791,2]
[359037495,1745665844475,-500.0,0.00019791,2]
[359037496,1745665844486,-898.83,0.00019791,2]
[359037497,1745665844496,-500.0,0.00019791,2]
[359037498,1745665844507,-500.0,0.00019791,2]
[359037499,1745665844517,-500.0,0.00019791,2]
[359037500,1745665844527,-1373.3,0.00019791,2]
[359037501,1745665844537,-500.0,0.00019791,2]
[359037503,1745665844547,-868.81,0.00019791,2]
[359037504,1745665844556,-856.43,0.00019791,2]
[359037505,1745665844566,-500.0,0.00019791,2]
[359037506,1745665844576,-846.17,0.00019791,2]
[359037507,1745665844586,-416.06581984,0.00019791,2]
[359037508,1745665844596,-500.0,0.00019791,2]
[359037509,1745665844606,-500.0,0.00019791,2]
[359037510,1745665844616,-500.0,0.00019791,2]
[359037511,1745665844626,-500.0,0.00019791,2]
[359037512,1745665844636,-500.0,0.00019791,2]
[359037513,1745665844646,-500.0,0.00019791,2]
[359037514,1745665844656,-500.0,0.00019791,2]
[359037515,1745665844667,-500.0,0.00019791,2]
[359037516,1745665844676,-500.0,0.00019791,2]
[359037517,1745665844686,-556.96,0.00019791,2]
[359037518,1745665844696,-500.0,0.00019791,2]
[359037519,1745665844706,-500.0,0.00019791,2]
[359037520,1745665844716,-992.61,0.00019791,2]
[359037521,1745665844726,-400.0,0.00019791,2]
[359037522,1745665844737,-465.6,0.00019791,2]
[359037523,1745665844747,-400.0,0.00019791,2]
[359037524,1745665844757,-4602.4,0.00019791,2]
[359037525,1745665844768,-136562.01,0.00019791,2]
[359037526,1745665844778,-400.0,0.00019791,2]
[359037527,1745665844789,-784.9,0.00019791,2]
[359037528,1745665844799,-909.83,0.00019791,2]
[359037529,1745665844810,-1169.22,0.00019791,2]
[359037530,1745665844820,-400.0,0.00019791,2]
[359037531,1745665844830,-433.85,0.00019791,2]
[359037532,1745665844840,-642.8,0.00019791,2]
[359037533,1745665844850,-672.32,0.00019791,2]
[359037534,1745665844860,-400.0,0.00019791,2]
[359037535,1745665844872,-661.68,0.00019791,2]
[359037536,1745665844882,-400.0,0.00019791,2]
[359037537,1745665844893,-400.0,0.00019791,2]
[359037538,1745665844903,-400.0,0.00019791,2]
[359037539,1745665844915,-890.87,0.00019791,2]
[359037540,1745665844925,-938.51,0.00019791,2]
[359037541,1745665844936,-400.0,0.00019791,2]
[359037542,1745665844947,-400.0,0.00019791,2]
[359037543,1745665844958,-1098.53,0.00019791,2]
[359037544,1745665844968,-503.67,0.00019791,2]
[359037545,1745665844978,-400.0,0.00019791,2]
[359037546,1745665844989,-436.16,0.00019791,2]
[359037547,1745665844999,-400.0,0.00019791,2]
[359037548,1745665845010,-400.0,0.00019791,2]
[359037549,1745665845022,-640.45,0.00019791,2]
[359037550,1745665845032,-535.12,0.00019791,2]
[359037551,1745665845042,-400.0,0.00019791,2]
[359037552,1745665845052,-793.38,0.00019791,2]
[359037554,1745665845063,-400.0,0.00019791,2]
[359037556,1745665845073,-421.38,0.00019791,2]
[359037558,1745665845084,-579.78,0.00019791,2]
[359037559,1745665845094,-977.36,0.00019791,2]
[359037560,1745665845104,-400.0,0.00019791,2]
[359037561,1745665845114,-985.47,0.00019791,2]
[359037562,1745665845124,-400.0,0.00019791,2]
[359037563,1745665845134,-425.34,0.00019791,2]
[359037564,1745665845144,-400.0,0.00019791,2]
[359037565,1745665845155,-400.0,0.00019791,2]
[359037566,1745665845165,-400.0,0.00019791,2]
[359037567,1745665845176,-500.0,0.00019791,2]
[359037568,1745665845186,-413.52,0.00019791,2]
[359037569,1745665845199,-500.0,0.00019791,2]
[359037570,1745665845210,-400.0,0.00019791,2]
[359037571,1745665845220,-500.0,0.00019791,2]
[359037572,1745665845230,-594.99,0.00019791,2]
[359037573,1745665845242,-2027.4,0.00019791,2]
[359037574,1745665845252,-400.0,0.00019791,2]
[359037575,1745665845263,-400.0,0.00019791,2]
[359037576,1745665845274,-856.11,0.00019791,2]
[359037577,1745665845285,-400.0,0.00019791,2]
[359037578,1745665845295,-567.54,0.00019791,2]
[359037579,1745665845306,-516.82,0.00019791,2]
[359037580,1745665845317,-400.0,0.00019791,2]
[359037581,1745665845328,-1355.33,0.00019791,2]
[359037582,1745665845339,-535.56101566,0.00019791,2]
[359037583,1745665845350,-400.0,0.00019791,2]
[359037584,1745665845361,-376.68023544,0.00019791,2]
[359037585,1745665845372,-400.0,0.00019791,2]
[359037586,1745665845382,-400.0,0.00019791,2]
[359037587,1745665845392,-476.73,0.00019791,2]
[359037588,1745665845402,-259.7583466,0.00019791,2]
[359037589,1745665845411,-808.41,0.00019791,2]
[359037590,1745665845422,-706.21,0.00019791,2]
[359037591,1745665845696,-575.89,0.00019791,2]
[359037592,1745665845707,-197.1802369,0.00019791,2]
[359037593,1745665845716,-400.0,0.00019791,2]
[359037594,1745665845728,-550.74,0.00019791,2]
[359037595,1745665845739,-486.53,0.00019791,2]
[359037596,1745665845750,-918.15,0.00019791,2]
[359037597,1745665845760,-1821.88,0.00019791,2]
[359037598,1745665845770,-400.0,0.00019791,2]
[359037599,1745665845780,-400.0,0.00019791,2]
[359037600,1745665845790,-400.0,0.00019791,2]
[359037601,1745665845802,-405.33,0.00019791,2]
[359037602,1745665845813,-400.0,0.00019791,2]
[359037603,1745665845824,-400.0,0.00019791,2]
[359037604,1745665845835,-400.0,0.00019791,2]
[359037605,1745665845845,-500.0,0.00019791,2]
[359037606,1745665845856,-400.0,0.00019791,2]
[359037607,1745665845866,-403.33,0.00019791,2]
[359037608,1745665845877,-1132.95,0.00019791,2]
[359037609,1745665845886,-665.19,0.00019791,2]
[359037610,1745665845896,-1476.16,0.00019791,2]
[359037611,1745665845905,-400.0,0.00019791,2]
[359037612,1745665845915,-400.0,0.00019791,2]
[359037613,1745665845925,-998.94,0.00019791,2]
[359037614,1745665845935,-1275.57,0.00019792,2]
[359037615,1745665845944,-500.0,0.00019792,2]
[359037616,1745665845954,-1386.7,0.00019792,2]
[359037617,1745665845964,-500.0,0.00019792,2]
[359037618,1745665845974,-710.12,0.00019792,2]
[359037619,1745665845984,-500.0,0.00019792,2]
[359037620,1745665845993,-1020.71,0.00019792,2]
[359037621,1745665846004,-500.0,0.00019792,2]
[359037622,1745665846017,-500.0,0.00019792,2]
[359037623,1745665846027,-784.65,0.00019792,2]
[359037624,1745665846038,-5171.758191,0.00019807,2]
[359037625,1745665846048,-1702.07759113,0.00019807,2]
[359037626,1745665846059,-590.34093755,0.00019818,2]
[359037627,1745665846069,-500.0,0.00019818,2]
[359037628,1745665846079,-150.0,0.00019818,2]
[359037629,1745665846091,-500.0,0.00019818,2]
[359037630,1745665846102,-150.0,0.00019818,2]
[359037631,1745665846113,-150.0,0.00019818,2]
[359037632,1745665846125,-151.86601957,0.00019818,2]
[359037633,1745665846134,-500.0,0.00019818,2]
[359037634,1745665846144,-500.0,0.00019818,2]
[359037635,1745665846153,-150.0,0.00019818,2]
[359037636,1745665846163,-500.0,0.00019818,2]
[359037637,1745665846173,-150.0,0.00019818,2]
[359037638,1745665846182,-500.0,0.00019818,2]
[359037639,1745665846197,-500.0,0.00019818,2]
[359037640,1745665846208,-500.0,0.00019818,2]
[359037641,1745665846219,-500.0,0.00019818,2]
[359037642,1745665846230,-500.0,0.00019818,2]
[359037643,1745665846243,-5171.758191,0.0001983,2]
[359037644,1745665846253,-1702.07759113,0.0001983,2]
[359037645,1745665846263,-2000.0,0.0001984,2]
[359037646,1745665846275,-200.0,0.00019846,2]
[359037647,1745665846286,-150.0,0.00019846,2]
[359037648,1745665846296,-202.65501216,0.00019846,2]
[359037649,1745665846307,-150.0,0.00019846,2]
[359037650,1745665846318,-200.0,0.00019846,2]
[359037651,1745665846328,-166.0,0.00019846,2]
[359037652,1745665846339,-550.0,0.00019846,2]
[359037653,1745665846350,-250.0,0.00019846,2]
[359037654,1745665846360,-252.10401299,0.00019846,2]
[359037655,1745665846370,-250.0,0.00019846,2]
[359037656,1745665846380,-150.0,0.00019846,2]
[359037657,1745665846391,-500.0,0.00019846,2]
[359037658,1745665846401,-500.0,0.00019846,2]
[359037659,1745665846411,-500.0,0.00019846,2]
[359037660,1745665846421,-5171.758191,0.00019854,2]
[359037661,1745665846431,-1702.07759113,0.00019854,2]
[359037662,1745665846442,-150.0,0.00019873,2]
[359037663,1745665846452,-150.0,0.00019873,2]
[359037664,1745665846465,-500.0,0.00019873,2]
[359037665,1745665846475,-500.0,0.00019873,2]
[359037666,1745665846485,-500.0,0.00019873,2]
[359037667,1745665846496,-5171.758191,0.00019877,2]
[359037668,1745665846506,-1702.07759113,0.00019877,2]
[359037670,1745665846515,-338.65561563,0.00019882,2]
[359037672,1745665846525,-151.0,0.00019892,2]
[359037674,1745665846536,-151.0,0.00019892,2]
[359037676,1745665846546,-151.0,0.00019892,2]
[359037678,1745665846555,-151.0,0.00019892,2]
[359037680,1745665846565,-151.0,0.00019892,2]
[359037682,1745665846575,-151.0,0.00019892,2]
[359037684,1745665846585,-151.0,0.00019892,2]
[359037686,1745665846596,-151.0,0.00019892,2]
[359037689,1745665846606,-151.0,0.00019892,2]
[359037691,1745665846617,-151.0,0.00019892,2]
[359037692,1745665846626,-378.77300623,0.00019898,2]
[359037695,1745665846638,-378.7730062,0.00019898,2]
[359037696,1745665846648,-378.7730062,0.00019899,2]
[359037699,1745665846658,-378.7730062,0.00019899,2]
[359037700,1745665846667,-378.7730062,0.00019899,2]
[359037702,1745665846677,-378.7730062,0.000199,2]
[359037704,1745665846687,-378.7730062,0.000199,2]
[359037706,1745665846696,-5171.758191,0.000199,2]
[359037708,1745665846707,-1702.07759113,0.000199,2]
[359037710,1745665846717,-4098.97926314,0.000199,2]
[359037712,1745665846727,-202.83355767,0.000199,2]
[359037714,1745665846736,-254.78636304,0.00019901,2]
[359037716,1745665846746,-177.18528437,0.00019901,2]
[359037718,1745665846756,-500.0,0.00019901,2]
[359037720,1745665846766,-500.0,0.00019901,2]
[359037722,1745665846776,-500.0,0.00019901,2]
[359037724,1745665846786,-3991.0,0.00019921,2]
[359037726,1745665846795,-201.859,0.00019921,2]
[359037727,1745665846805,-6193.0,0.00019921,2]
[359037728,1745665846815,-257.141,0.00019921,2]
[359037729,1745665846825,-872.0,0.00019921,2]
[359037730,1745665846834,-877.0,0.00019921,2]
[359037731,1745665846844,-408.92069253,0.00019928,2]
[359037732,1745665846853,-500.0,0.00019928,2]
[359037733,1745665846863,-500.0,0.00019928,2]
[359037734,1745665846873,-500.0,0.00019955,2]
[359037735,1745665846882,-500.0,0.00019955,2]
[359037736,1745665846892,-500.0,0.00019973,2]
[359037737,1745665846902,-500.0,0.00019973,2]
[359037738,1745665846913,-500.0,0.00019973,2]
[359037739,1745665846925,-1604.052,0.00019973,2]
[359037740,1745665846936,-179.223,0.00019982,2]
[359037741,1745665846946,-249.813,0.00019982,2]
[359037742,1745665846956,-190.002,0.00019982,2]
[359037743,1745665846965,-155.315,0.00019982,2]
[359037744,1745665846975,-152.676,0.00019982,2]
[359037745,1745665846985,-253.434,0.00019982,2]
[359037746,1745665846997,-245.67,0.00019982,2]
[359037747,1745665847010,-182.428,0.00019982,2]
[359037748,1745665847021,-258.956,0.00019982,2]
[359037749,1745665847032,-172.669,0.00019982,2]
[359037750,1745665847042,-920.0,0.00019982,2]
[359037751,1745665847052,-1336.0,0.00019982,2]
[359037752,1745665847063,-796.0,0.00019982,2]
[359037753,1745665847073,-1287.0,0.00019982,2]
[359037754,1745665847083,-2063.0,0.00019982,2]
[359037755,1745665847094,-548.0,0.00019982,2]
[359037756,1745665847107,-579.0,0.00019982,2]
[359037757,1745665847117,-911.0,0.00019982,2]
[359037758,1745665847128,-1446.0,0.00019982,2]
[359037759,1745665847138,-500.0,0.00019983,2]